bitfinex-derivatives/quotes_ETHF0:USTF0_20241017
["timestamp","ask_amount","ask_price","bid_price","bid_amount"]
[1729149696802,0.38094,2625.7,2625.3,3.6234]
[1729149696803,2.68,2625.8,2625.4,0.38097]
[1729149697001,0.38097,2625.5,2625.4,0.79857]
[1729149697497,0.38097,2625.5,2625.4,0.4176]
[1729149697702,0.38097,2625.5,2625.4,0.79858]
[1729149697906,0.38097,2625.5,2625.4,0.4176]
[1729149698899,0.38104,2625.0,2624.9,3.2078]
[1729149699400,0.38104,2625.0,2624.9,3.58886]
[1729149699705,0.38104,2625.0,2624.9,3.2078]
[1729149700402,0.38104,2625.1,2624.9,3.2078]
[1729149700596,0.38104,2625.0,2624.9,3.2078]
[1729149701003,0.38104,2625.0,2624.9,3.58886]
[1729149701200,0.38104,2625.0,2624.9,3.2078]
[1729149701596,0.38104,2625.0,2624.9,3.58886]
[1729149702399,0.38101,2625.2,2625.1,0.38102]
[1729149702705,6.2809,2625.6,2624.9,3.2078]
[1729149702899,4.0237,2625.6,2624.9,5.8878]
[1729149703101,0.38097,2625.5,2625.4,0.38097]
[1729149703402,0.38097,2625.5,2624.9,6.88481778]
[1729149703403,4.0237,2625.6,2624.9,6.88481778]
[1729149703597,0.38102,2625.2,2625.1,0.38102]
[1729149703800,6.7037,2625.6,2624.9,3.2078]
[1729149704002,0.38104,2625.1,2625.0,0.38104]
[1729149704302,0.38101,2625.3,2624.9,3.2078]
[1729149704507,0.38102,2625.2,2625.1,0.38102]
[1729149704705,0.38101,2625.3,2625.2,0.38101]
[1729149705606,0.38102,2625.2,2625.1,0.38102]
[1729149705902,0.38101,2625.3,2625.2,0.38101]
[1729149706501,0.381,2625.4,2625.3,0.381]
[1729149707793,0.38098,2625.5,2625.4,0.38098]
[1729149708308,0.3931,2625.6,2625.0,1.94961778]
[1729149708509,0.38094,2625.8,2625.7,0.38093]
[1729149709010,4.0184,2625.9,2625.4,1.2288]
[1729149709200,4.0184,2625.9,2625.6,0.38095]
[1729149709405,4.0184,2625.9,2625.4,1.2288]
[1729149709712,0.38097,2625.6,2625.5,0.38096]
[1729149710204,0.38097,2625.5,2625.4,1.18068]
[1729149710402,0.38097,2625.5,2625.4,0.3961]
[1729149710604,0.38097,2625.5,2625.4,0.77708]
[1729149710807,3.63233,2625.8,2625.1,0.4036]
[1729149711004,3.63233,2625.8,2625.2,0.3961]
[1729149711606,0.38099,2625.4,2625.3,0.38099]
[1729149712405,0.4024,2625.5,2625.2,0.3961]
[1729149712809,0.381,2625.4,2625.3,0.38099]
[1729149713709,0.4024,2625.5,2625.2,0.7771]
[1729149713710,0.381,2625.3,2625.2,0.7771]
[1729149714213,0.38099,2625.4,2625.3,0.38099]
[1729149715020,0.38099,2625.4,2625.2,0.3961]
[1729149715021,0.78338,2625.5,2625.4,0.38098]
[1729149716419,0.38096,2625.6,2625.2,1.39311778]
[1729149716615,0.38096,2625.6,2625.5,0.38097]
[1729149717718,0.8382,2625.9,2625.8,0.38093]
[1729149718124,0.38093,2625.8,2625.7,0.38093]
[1729149718433,0.8382,2625.9,2625.6,0.99701778]
[1729149718434,1.21912,2625.9,2625.8,0.38093]
[1729149719228,1.21912,2625.9,2625.7,0.38093]
[1729149719229,0.38093,2625.8,2625.7,0.38093]
[1729149720020,1.21912,2625.9,2625.8,0.38093]
[1729149721032,1.21912,2625.9,2625.6,0.7853]
[1729149721033,0.8382,2625.9,2625.6,0.7853]
[1729149721221,0.38094,2625.7,2625.6,1.16624]
[1729149721622,0.38094,2625.7,2625.6,0.77484]
[1729149721928,0.8382,2625.9,2625.4,0.99701778]
[1729149722114,0.38097,2625.6,2625.5,0.38097]
[1729149722320,0.38098,2625.5,2625.4,0.38098]
[1729149722620,0.38098,2625.4,2625.3,1.21159]
[1729149723327,0.78177,2625.5,2625.4,0.38098]
[1729149723529,0.38098,2625.4,2625.3,2.20860778]
[1729149723823,0.38098,2625.4,2625.3,1.21159]
[1729149724122,0.38093,2625.8,2625.7,0.38094]
[1729149724317,0.832,2625.9,2625.4,0.99701778]
[1729149724518,3.2078,2626.0,2625.5,0.99701778]
[1729149724722,0.38091,2625.9,2625.8,0.38092]
[1729149725125,1.97410429,2626.1,2625.5,0.99701778]
[1729149725328,0.3809,2626.0,2625.9,0.3809]
[1729149726525,0.4085,2626.2,2625.8,0.4141]
[1729149726726,0.38089,2626.1,2626.0,0.38089]
[1729149727930,2.38260429,2626.2,2625.8,0.4141]
[1729149728132,0.38089,2626.1,2626.0,0.38089]
[1729149728541,0.4085,2626.2,2626.1,0.38088]
[1729149728830,2.35493429,2626.5,2626.4,0.38084]
[1729149729034,2.35493429,2626.5,2626.1,8.68]
[1729149729035,3.2078,2626.6,2626.5,0.38083]
[1729149729423,3.2078,2626.6,2626.5,4.18803]
[1729149731024,3.58861,2626.6,2626.5,4.18803]
[1729149731230,3.58861,2626.6,2626.5,3.8072]
[1729149731424,3.58862,2626.6,2626.5,0.38083]
[1729149731624,0.38083,2626.5,2626.4,0.77113]
[1729149731931,0.38085,2626.3,2626.2,0.77636]
[1729149732128,3.2078,2626.6,2626.3,0.38084]
[1729149732129,0.38085,2626.4,2626.3,0.38084]
[1729149732934,0.4305,2626.5,2626.2,0.3955]
[1729149733228,0.4305,2626.5,2626.4,0.38084]
[1729149733229,0.38083,2626.5,2626.4,0.38084]
[1729149733429,3.58861,2626.6,2626.5,0.38083]
[1729149734332,3.2078,2626.6,2626.5,0.38083]
[1729149734835,3.58861,2626.6,2626.5,0.38083]
[1729149735028,3.2078,2626.6,2626.5,0.38083]
[1729149736928,3.58861,2626.6,2626.5,0.38083]
[1729149737322,3.2078,2626.6,2626.2,0.3955]
[1729149737636,0.38084,2626.5,2626.4,0.38083]
[1729149737932,3.58861,2626.6,2626.5,0.38083]
[1729149739323,3.2078,2626.6,2626.5,0.38083]
[1729149739729,0.38081,2626.7,2626.2,0.3955]
[1729149740031,0.38083,2626.6,2626.5,0.38082]
[1729149740338,0.38085,2626.4,2626.3,0.38084]
[1729149740534,0.38085,2626.4,2626.2,0.3955]
[1729149740535,0.38084,2626.5,2626.4,0.38083]
[1729149740722,0.38085,2626.4,2626.3,0.38084]
[1729149741544,0.77663,2626.5,2626.4,0.38084]
[1729149742228,0.77663,2626.5,2626.3,0.38085]
[1729149742229,0.38085,2626.4,2626.3,0.38085]
[1729149742626,0.3958,2626.5,2626.2,0.3955]
[1729149742826,0.3958,2626.5,2626.0,0.4039]
[1729149742827,3.0758,2626.5,2626.0,0.4039]
[1729149743139,3.0758,2626.5,2625.7,0.99701778]
[1729149743140,0.38087,2626.2,2626.1,0.38088]
[1729149743428,0.38087,2626.2,2625.7,1.38025]
[1729149743429,3.6036,2626.5,2626.0,3.2078]
[1729149743640,0.38086,2626.3,2626.2,0.38086]
[1729149743834,3.6036,2626.5,2626.0,3.2078]
[1729149744134,0.3958,2626.5,2626.4,0.38084]
[1729149744534,41.1808,2626.7,2626.6,0.38081]
[1729149744835,40.8,2626.7,2626.6,0.38081]
[1729149745033,0.3808,2626.8,2626.7,0.38079]
[1729149745228,0.38081,2626.7,2626.6,0.38081]
[1729149745532,4.0332,2626.9,2626.4,0.3983]
[1729149745533,4.41398,2626.9,2626.5,0.38083]
[1729149745731,4.41398,2626.9,2626.8,0.38078]
[1729149745732,3.2078,2626.9,2626.8,0.38078]
[1729149745931,0.38075,2627.0,2626.9,0.38076]
[1729149746233,0.38076,2627.0,2626.9,0.38076]
[1729149746937,0.802,2627.3,2627.0,0.38075]
[1729149746938,0.38075,2627.1,2627.0,0.38075]
[1729149747240,0.802,2627.3,2626.9,0.38076]
[1729149747434,0.38075,2627.1,2627.0,0.79675]
[1729149748334,0.38075,2627.1,2627.0,0.416]
[1729149749040,0.802,2627.3,2627.0,0.79675]
[1729149749230,0.38073,2627.2,2627.0,0.79675]
[1729149749430,0.38074,2627.1,2627.0,0.79675]
[1729149750328,0.802,2627.3,2627.0,0.79675]
[1729149750533,0.38073,2627.2,2627.0,0.79675]
[1729149750737,0.802,2627.3,2627.0,0.79675]
[1729149751134,0.38074,2627.1,2627.0,0.79675]
[1729149751437,0.78412,2627.3,2627.2,0.38072]
[1729149751836,0.38072,2627.2,2627.1,0.79613]
[1729149752032,0.78411,2627.3,2627.2,0.38072]
[1729149752840,0.38072,2627.2,2627.1,0.79613]
[1729149753139,0.38072,2627.2,2627.1,0.4154]
[1729149753344,0.38072,2627.2,2627.1,0.79613]
[1729149753734,0.78411,2627.3,2627.2,0.38072]
[1729149754242,0.4034,2627.3,2627.2,0.38072]
[1729149754540,0.78411,2627.3,2627.2,0.38072]
[1729149754742,3.2078,2627.6,2627.1,0.4154]
[1729149754940,3.6065,2627.6,2627.1,0.4154]
[1729149755130,3.6065,2627.6,2627.3,0.3807]
[1729149755728,3.6065,2627.6,2627.2,0.3964]
[1729149755944,0.38069,2627.5,2627.4,0.38069]
[1729149756150,0.3807,2627.4,2627.3,0.3807]
[1729149756334,3.6065,2627.6,2627.2,0.3964]
[1729149756645,0.38071,2627.4,2627.2,0.77711]
[1729149756843,0.38071,2627.4,2627.3,0.38071]
[1729149757340,3.6065,2627.6,2627.2,0.77712]
[1729149757341,0.38071,2627.3,2627.2,0.77712]
[1729149757644,0.38071,2627.3,2627.2,0.3964]
[1729149757829,0.38072,2627.2,2627.1,0.4154]
[1729149758034,0.80282,2627.2,2627.1,0.4154]
[1729149758431,0.80282,2627.2,2627.1,0.79614]
[1729149759837,0.38072,2627.2,2627.1,0.79614]
[1729149760134,0.4221,2627.5,2627.1,0.4154]
[1729149760334,0.38072,2627.3,2627.2,0.38072]
[1729149761441,0.38072,2627.2,2627.1,0.79613]
[1729149762630,0.38072,2627.3,2627.2,0.38071]
[1729149762841,0.38072,2627.2,2627.1,0.79613]
[1729149763349,0.38072,2627.3,2627.2,0.38071]
[1729149765242,0.4221,2627.5,2627.1,0.4154]
[1729149765547,0.38072,2627.3,2627.2,0.38071]
[1729149765742,0.38072,2627.2,2627.1,0.79612]
[1729149767645,0.80279,2627.5,2627.4,0.38069]
[1729149767845,0.3807,2627.4,2627.3,0.38069]
[1729149768039,0.8028,2627.5,2627.4,0.38069]
[1729149769046,0.8028,2627.5,2627.3,0.3807]
[1729149769047,0.3807,2627.4,2627.3,0.3807]
[1729149769746,0.80279,2627.5,2627.4,0.38069]
[1729149770648,0.4221,2627.5,2627.1,3.6232]
[1729149770840,0.4221,2627.5,2627.3,0.3807]
[1729149770841,0.3807,2627.4,2627.3,0.3807]
[1729149771741,0.80279,2627.5,2627.4,0.38069]
[1729149772245,0.38069,2627.5,2627.4,0.38069]
[1729149774246,0.77938,2627.6,2627.5,0.38068]
[1729149775341,0.3987,2627.6,2627.5,0.38068]
[1729149776446,0.77937,2627.6,2627.5,0.38068]
[1729149777641,3.2078,2627.8,2627.5,2.68]
[1729149777844,3.2078,2627.8,2627.7,0.38065]
[1729149778340,3.58844,2627.8,2627.7,0.38065]
[1729149778739,3.2078,2627.8,2627.7,0.38065]
[1729149778947,3.58844,2627.8,2627.7,0.38065]
[1729149779936,3.2078,2627.8,2627.6,0.4175]
[1729149780145,3.2078,2627.8,2627.4,0.4078]
[1729149780452,0.38066,2627.7,2627.6,0.38065]
[1729149781139,0.38066,2627.7,2627.4,0.4078]
[1729149781140,0.38067,2627.6,2627.5,0.38067]
[1729149784146,3.2078,2627.8,2627.4,0.4078]
[1729149784350,0.38068,2627.5,2627.4,0.78849]
[1729149789954,0.38068,2627.5,2627.4,2.01849]
[1729149791356,0.38068,2627.5,2627.4,3.01550778]
[1729149792047,0.4245,2627.6,2627.4,2.63481778]
[1729149792254,0.38067,2627.7,2627.6,0.38065]
[1729149793649,0.38067,2627.6,2627.5,3.10180712]
[1729149793850,0.38067,2627.6,2627.5,2.23929537]
[1729149794051,0.38067,2627.6,2627.5,2.23930668]
[1729149794052,1.61067,2627.6,2627.5,2.23930668]
[1729149794255,1.61067,2627.6,2627.5,2.61998668]
[1729149794454,1.61067,2627.6,2627.5,2.23944117]
[1729149794852,1.61067,2627.6,2627.4,0.99786295]
[1729149794853,1.23,2627.6,2627.4,0.99786295]
[1729149795052,2.4492,2627.5,2627.3,0.99786295]
[1729149795351,0.38071,2627.3,2627.2,1.40406295]
[1729149795553,1.23,2627.3,2627.1,0.99786295]
[1729149795756,0.38074,2627.1,2627.0,2.22786295]
[1729149795956,0.38074,2627.1,2627.0,3.46975224]
[1729149796553,0.38074,2627.1,2627.0,2.47188929]
[1729149797059,1.61074,2627.1,2627.0,2.24023377]
[1729149797356,0.38074,2627.1,2627.0,2.22834448]
[1729149797557,7.35282429,2627.5,2627.0,3.96311594]
[1729149797766,0.38074,2627.1,2627.0,1.49113712]
[1729149798061,0.38074,2627.2,2627.0,3.11374423]
[1729149798257,0.38074,2627.2,2627.1,3.47012038]
[1729149798464,0.38074,2627.2,2627.1,3.86772038]
[1729149799564,0.38074,2627.2,2627.1,2.63772038]
[1729149799752,1.61074,2627.2,2627.1,2.24012038]
[1729149799957,1.61074,2627.2,2627.1,0.99826327]
[1729149800458,0.38074,2627.1,2627.0,0.99826327]
[1729149800761,1.61074,2627.1,2627.0,2.24014777]
[1729149801262,0.38074,2627.1,2627.0,3.47014777]
[1729149802057,0.38074,2627.1,2627.0,4.34368513]
[1729149802363,0.38067,2627.3,2627.1,0.38069]
[1729149802664,0.38067,2627.3,2627.2,2.65236005]
[1729149804961,0.38067,2627.3,2627.2,3.89411163]
[1729149805160,0.38067,2627.3,2627.2,2.65236005]
[1729149805464,0.38067,2627.3,2627.2,3.89409081]
[1729149806164,1.61067,2627.3,2627.2,1.42236005]
[1729149807862,0.38067,2627.3,2627.2,1.42236005]
[1729149808055,0.38067,2627.3,2627.2,2.66413334]
[1729149808256,0.38067,2627.3,2627.2,1.42236005]
[1729149808564,0.38067,2627.3,2627.2,2.66414542]
[1729149808951,0.38067,2627.3,2627.2,2.66414186]
[1729149809557,0.38067,2627.3,2627.2,1.42236005]
[1729149809753,0.38067,2627.3,2627.2,2.66413127]
[1729149809954,2.4492,2627.5,2627.2,3.89413183]
[1729149810263,3.2078,2627.8,2627.4,1.49724008]
[1729149810472,3.2078,2627.8,2627.6,2.60866919]
[1729149810473,0.38062,2627.7,2627.6,2.60866919]
[1729149810653,0.38062,2627.7,2627.6,3.85030634]
[1729149810859,0.4038,2627.9,2627.8,0.3806]
[1729149811163,0.38058,2627.9,2627.8,2.22796826]
[1729149811366,0.38058,2627.9,2627.8,4.34935601]
[1729149811663,0.38058,2627.9,2627.8,3.46926262]
[1729149811861,0.38058,2627.9,2627.8,2.23926262]
[1729149812262,0.38058,2627.9,2627.8,2.23910244]
[1729149812462,0.38058,2628.0,2627.8,0.99757651]
[1729149812662,0.38058,2627.9,2627.8,0.99757651]
[1729149812857,0.38058,2627.9,2627.8,2.23864008]
[1729149813071,1.97410429,2628.5,2627.8,12.54390365]
[1729149813260,1.97410429,2628.5,2628.0,1.49724008]
[1729149813261,0.38056,2628.1,2628.0,1.49724008]
[1729149813462,0.38056,2628.1,2628.0,0.99718818]
[1729149814358,0.38057,2628.0,2627.9,1.38528818]
[1729149814565,0.38057,2628.0,2627.9,2.62536858]
[1729149814766,0.38057,2628.0,2627.9,3.12564663]
[1729149814967,0.38057,2628.0,2627.9,1.38507362]
[1729149815366,0.38057,2628.0,2627.9,0.3881]
[1729149816069,0.38058,2627.9,2627.8,0.99697362]
[1729149816274,0.38058,2627.9,2627.8,1.77557362]
[1729149817362,0.38058,2627.9,2627.8,0.7786]
[1729149817864,0.38058,2627.9,2627.8,1.77557362]
[1729149819777,0.38058,2627.9,2627.8,0.7786]
[1729149822179,0.38058,2627.9,2627.8,1.77557362]
[1729149822874,0.38058,2628.0,2627.9,0.38057]
[1729149823078,0.38056,2628.2,2628.1,0.38055]
[1729149823970,0.38053,2628.3,2628.2,0.38053]
[1729149824175,1.2308,2628.5,2628.2,2.67]
[1729149824477,0.38048,2628.7,2628.6,0.38048]
[1729149825275,1.35129,2629.0,2628.5,1.81677362]
[1729149825276,0.38046,2628.8,2628.7,0.38046]
[1729149825576,0.38048,2628.7,2628.6,0.38048]
[1729149826173,0.38045,2628.9,2628.8,0.38045]
[1729149826382,0.4002,2629.0,2628.5,1.81677362]
[1729149826679,0.4002,2629.0,2628.6,0.38047]
[1729149827179,0.4002,2629.0,2628.5,1.81677362]
[1729149827372,0.38048,2628.6,2628.5,1.20029]
[1729149827678,1.35129,2629.0,2628.6,0.38048]
[1729149827679,0.38048,2628.7,2628.6,0.38048]
[1729149829190,0.38048,2628.6,2628.5,1.20029]
[1729149831784,0.38048,2628.6,2628.5,2.43029]
[1729149832583,0.38048,2628.6,2628.5,5.63809]
[1729149832778,0.38048,2628.6,2628.5,5.6381]
[1729149834179,0.38048,2628.6,2628.5,2.4303]
[1729149834380,0.38048,2628.6,2628.5,5.6381]
[1729149835983,0.38048,2628.7,2628.6,0.38047]
[1729149836288,0.38048,2628.7,2628.6,1.61047]
[1729149837087,0.38048,2628.7,2628.6,1.23]
[1729149837391,0.38048,2628.7,2628.6,1.61048]
[1729149842890,0.38043,2629.1,2629.0,0.38041]
[1729149843088,0.38043,2629.1,2629.0,1.61041]
[1729149844987,0.38043,2629.1,2629.0,1.23]
[1729149845188,0.38043,2629.1,2629.0,1.61042]
[1729149845684,3.2078,2629.2,2629.0,1.61042]
[1729149845885,3.5882,2629.2,2629.1,1.61041]
[1729149846195,0.38041,2629.1,2629.0,1.625]
[1729149846396,0.38041,2629.1,2629.0,1.61042]
[1729149848082,5.034,2629.1,2628.6,3.2078]
[1729149848283,1.61047,2628.7,2628.6,3.2078]
[1729149848505,0.38051,2628.4,2628.3,4.4378]
[1729149848793,0.38051,2628.4,2628.1,1.23]
[1729149848794,1.23,2628.4,2628.1,1.23]
[1729149849092,1.61054,2628.2,2628.1,1.23]
[1729149849292,0.38057,2628.0,2627.9,3.2078]
[1729149849492,0.38057,2628.0,2627.9,4.81838]
[1729149849795,1.61057,2628.0,2627.9,3.2078]
[1729149850094,1.61057,2628.0,2627.9,4.4378]
[1729149850294,11.0356,2628.0,2627.4,0.8372]
[1729149850597,11.0356,2628.0,2627.7,1.23]
[1729149850598,0.3806,2627.8,2627.7,1.23]
[1729149851292,1.6106,2627.8,2627.7,1.23]
[1729149851893,0.38062,2627.7,2627.5,0.38064]
[1729149852396,0.38062,2627.7,2627.6,0.38063]
[1729149852787,3.0765,2628.0,2627.4,1.21785]
[1729149852983,0.78324,2627.6,2627.4,0.8372]
[1729149853183,0.4026,2627.6,2627.5,0.38064]
[1729149854096,0.4065,2628.0,2627.5,0.38064]
[1729149854287,0.38056,2628.1,2627.7,2.67]
[1729149854493,0.78313,2628.3,2628.2,0.38054]
[1729149854692,0.4026,2628.3,2628.2,0.38054]
[1729149855596,0.3805,2628.5,2628.4,0.38051]
[1729149856292,0.4248,2628.6,2628.0,5.03088362]
[1729149856493,0.3872,2628.7,2628.6,0.38048]
[1729149859698,0.76767,2628.7,2628.6,0.38048]
[1729149859899,0.3872,2628.7,2628.5,3.6203]
[1729149860103,0.76768,2628.7,2628.6,0.38048]
[1729149861992,0.3872,2628.7,2628.6,0.38048]
[1729149862397,0.38044,2629.0,2628.9,0.38043]
[1729149862604,0.84,2629.1,2628.6,0.4188]
[1729149862806,0.38045,2628.9,2628.8,0.38045]
[1729149863303,0.38046,2628.8,2628.7,0.38046]
[1729149864605,0.38047,2628.7,2628.6,0.79928]
[1729149865504,0.38048,2628.7,2628.6,0.38047]
[1729149867297,0.3805,2628.5,2628.4,1.37747362]
[1729149867498,0.3805,2628.5,2628.4,0.3805]
[1729149867802,0.38051,2628.4,2628.3,1.37748362]
[1729149868006,0.38051,2628.4,2628.3,0.38051]
[1729149868397,0.38051,2628.5,2628.4,0.3805]
[1729149868799,0.4114,2629.1,2628.4,0.3805]
[1729149868800,1.97410429,2629.5,2628.8,0.38045]
[1729149868997,0.38037,2629.4,2629.3,0.38038]
[1729149869204,0.3905,2629.6,2629.0,6.87279038]
[1729149869505,0.38037,2629.4,2629.3,0.38038]
[1729149869706,0.38036,2629.5,2629.4,0.38036]
[1729149870109,0.38037,2629.4,2629.3,0.38037]
[1729149871011,0.3905,2629.6,2629.0,6.87279038]
[1729149871397,0.38035,2629.5,2629.0,6.87279038]
[1729149871600,0.38037,2629.4,2629.3,0.38037]
[1729149871796,0.3905,2629.6,2629.3,0.38037]
[1729149871999,0.38037,2629.4,2629.3,0.38037]
[1729149874504,0.3905,2629.6,2629.1,0.95101]
[1729149874699,0.3905,2629.6,2629.0,7.82385038]
[1729149875012,0.38037,2629.4,2629.3,0.38038]
[1729149875808,0.38033,2629.7,2629.5,0.38035]
[1729149876011,0.38035,2629.6,2629.5,0.38033]
[1729149876510,0.38034,2629.7,2629.6,0.38033]
[1729149876812,0.3934,2629.9,2629.4,1.2367]
[1729149876998,0.38035,2629.6,2629.5,0.38035]
[1729149877407,0.38034,2629.6,2629.5,0.38034]
[1729149879616,0.3934,2629.9,2629.1,1.94602038]
[1729149879617,2.67,2629.8,2629.1,3.2078]
[1729149879812,0.38039,2629.3,2629.2,0.38038]
[1729149880814,0.38038,2629.4,2629.3,0.38037]
[1729149882115,0.38039,2629.3,2629.1,3.6363]
[1729149882313,0.38037,2629.4,2629.3,0.38037]
[1729149885318,0.3897,2629.6,2629.1,3.6363]
[1729149885521,0.38039,2629.3,2629.2,0.38038]
[1729149885920,0.3897,2629.6,2629.1,3.6363]
[1729149886109,0.38039,2629.3,2629.2,0.38039]
[1729149890320,3.0597,2629.6,2629.1,3.6363]
[1729149890528,0.3804,2629.2,2629.1,4.01671]
[1729149894923,0.3804,2629.2,2629.1,0.80891]
[1729149899725,0.38048,2628.6,2628.5,0.99499038]
[1729149900024,0.38048,2628.6,2628.5,0.4078]
[1729149900328,0.38048,2628.6,2628.5,0.7883]
[1729149900628,3.2078,2628.8,2628.5,1.40279038]
[1729149900822,0.38048,2628.6,2628.5,0.4078]
[1729149901137,3.2078,2628.8,2628.6,0.38047]
[1729149901138,0.38048,2628.7,2628.6,0.38047]
[1729149901424,0.38048,2628.6,2628.5,0.78828]
[1729149901630,0.38047,2628.7,2628.6,0.38047]
[1729149902428,0.38048,2628.6,2628.5,0.78828]
[1729149903723,0.38048,2628.6,2628.5,0.4078]
[1729149903920,0.38048,2628.6,2628.5,0.7883]
[1729149904128,2.67,2628.6,2628.3,0.99499038]
[1729149904426,0.38053,2628.3,2628.2,1.18333]
[1729149905020,3.5987,2628.5,2628.2,0.8028]
[1729149905326,3.5987,2628.5,2628.4,0.38051]
[1729149905327,0.77141,2628.5,2628.4,0.38051]
[1729149905825,0.77141,2628.5,2628.2,1.79779038]
[1729149906025,3.5987,2628.5,2628.2,0.8028]
[1729149906225,0.3909,2628.5,2628.2,0.8028]
[1729149906432,0.38053,2628.3,2628.2,1.18334]
[1729149906726,3.2078,2628.8,2628.3,0.38052]
[1729149906727,0.38052,2628.4,2628.3,0.38052]
[1729149907429,3.5967,2628.8,2628.2,0.8028]
[1729149907619,0.38053,2628.3,2628.2,0.4097]
[1729149908421,0.76943,2628.3,2628.2,0.4097]
[1729149909519,0.38052,2628.4,2628.3,0.38052]
[1729149911132,0.38051,2628.5,2628.2,0.4097]
[1729149911321,0.38051,2628.5,2628.4,0.38051]
[1729149911529,0.38052,2628.4,2628.3,0.38052]
[1729149911727,0.38051,2628.5,2628.4,0.38051]
[1729149911928,0.38052,2628.4,2628.3,0.38052]
[1729149912432,0.38051,2628.5,2628.4,0.3805]
[1729149912933,0.38052,2628.4,2628.3,0.38052]
[1729149913336,0.38053,2628.3,2628.2,0.79023]
[1729149913531,0.38053,2628.3,2628.2,0.4097]
[1729149913827,0.38057,2628.0,2627.9,0.3949]
[1729149914129,0.38057,2628.0,2627.9,1.18098]
[1729149914526,0.38057,2628.0,2627.9,0.8004]
[1729149915037,0.38057,2628.0,2627.9,0.4055]
[1729149916021,2.16434,2628.3,2627.7,3.2078]
[1729149916218,0.3806,2627.8,2627.7,3.58841]
[1729149916832,0.3806,2627.8,2627.7,3.2078]
[1729149917232,0.3806,2627.8,2627.7,3.58841]
[1729149917529,2.16434,2628.3,2627.7,3.2078]
[1729149917732,0.38058,2628.0,2627.9,0.38057]
[1729149919530,0.38059,2627.9,2627.8,0.38059]
[1729149919735,1.213,2628.3,2627.7,3.2078]
[1729149919925,0.3806,2627.8,2627.7,3.2078]
[1729149920926,2.67,2628.0,2627.6,0.4132]
[1729149921127,0.80731,2627.7,2627.6,0.4132]
[1729149921435,0.80731,2627.7,2627.4,0.7941]
[1729149921436,0.38064,2627.5,2627.4,1.17475]
[1729149921938,0.38064,2627.5,2627.4,0.7941]
[1729149922232,0.38064,2627.5,2627.4,1.17476]
[1729149922431,0.38064,2627.5,2627.4,0.7941]
[1729149922826,0.38064,2627.5,2627.4,1.17476]
[1729149924030,3.58842,2627.7,2627.6,0.38063]
[1729149924236,0.38062,2627.7,2627.6,0.38062]
[1729149924435,0.3875,2627.9,2627.4,3.4641]
[1729149924629,0.38062,2627.7,2627.6,0.38063]
[1729149924826,0.3875,2627.9,2627.4,3.4641]
[1729149925032,0.38064,2627.5,2627.4,0.7941]
[1729149925530,0.38064,2627.5,2627.4,1.17476]
[1729149925834,0.38064,2627.5,2627.4,0.7941]
[1729149926237,0.38064,2627.5,2627.4,0.3887]
[1729149926436,0.38066,2627.4,2627.3,0.4038]
[1729149926939,0.38066,2627.4,2627.3,0.78447]
[1729149927836,0.38065,2627.5,2627.4,0.38065]
[1729149929240,0.38065,2627.5,2627.3,0.78446]
[1729149929936,0.7833,2627.9,2627.3,0.4038]
[1729149930140,0.38062,2627.7,2627.4,2.67]
[1729149930332,0.38062,2627.7,2627.6,0.38063]
[1729149930532,3.6319,2628.0,2627.4,2.67]
[1729149930745,3.2078,2628.0,2627.9,0.38058]
[1729149931239,3.9051,2628.7,2627.9,9.8056]
[1729149931240,1.2351,2628.7,2627.9,9.8056]
[1729149931428,4.3738,2629.1,2628.3,2.67]
[1729149931633,0.38046,2628.8,2628.6,0.38047]
[1729149931838,0.38043,2629.0,2628.8,0.38045]
[1729149932039,3.2078,2629.1,2628.6,3.2078]
[1729149932232,0.38043,2629.0,2628.6,3.2078]
[1729149932431,0.38042,2629.1,2628.9,0.38043]
[1729149932639,0.8178,2629.4,2628.7,2.67]
[1729149932844,0.38043,2629.0,2628.8,0.38045]
[1729149933146,0.8178,2629.4,2628.7,3.05046]
[1729149933542,0.38044,2628.9,2628.7,3.05046]
[1729149933740,0.38045,2628.9,2628.6,3.2078]
[1729149934041,0.38045,2628.9,2628.6,3.58827]
[1729149934244,0.38045,2628.8,2628.6,3.58827]
[1729149934642,0.38045,2628.8,2628.6,7.39227]
[1729149934938,0.38047,2628.7,2628.6,3.2078]
[1729149935247,0.38047,2628.7,2628.6,3.58828]
[1729149935547,0.38047,2628.7,2628.6,3.2078]
[1729149937040,0.38046,2628.8,2628.6,3.58827]
[1729149937344,0.38041,2629.1,2628.6,3.58827]
[1729149937644,3.2078,2629.3,2628.7,2.67]
[1729149937846,0.3804,2629.2,2628.9,0.38043]
[1729149938036,0.38042,2629.1,2629.0,0.413]
[1729149938236,0.38042,2629.1,2629.0,0.8327]
[1729149942446,3.2078,2629.3,2628.6,3.2078]
[1729149942646,0.38047,2628.7,2628.6,3.2078]
[1729149944853,0.8437,2629.0,2628.6,3.2078]
[1729149945044,0.38047,2628.7,2628.6,3.2078]
[1729149945244,0.38047,2628.7,2628.6,3.58828]
[1729149945946,0.8437,2629.0,2628.6,3.58828]
[1729149946154,0.38047,2628.7,2628.6,3.2078]
[1729149947956,1.79479,2629.0,2628.4,0.4287]
[1729149947957,0.3805,2628.5,2628.4,0.4287]
[1729149948556,3.0776,2628.7,2628.1,1.40019038]
[1729149948757,3.0776,2628.7,2627.9,0.4047]
[1729149948758,0.38057,2628.0,2627.9,0.4047]
[1729149949364,0.38057,2628.0,2627.9,0.78528]
[1729149949768,0.38057,2628.0,2627.9,0.4047]